bitfinex-derivatives/quotes_BTCF0:USTF0_20250719
["timestamp","ask_amount","ask_price","bid_price","bid_amount"]
[1752961170722,0.5463592,117640.0,117630.0,0.2902102]
[1752961170913,0.7786092,117640.0,117630.0,1.06282054]
[1752961171114,0.7786092,117640.0,117630.0,0.70202054]
[1752961171419,0.7786092,117640.0,117630.0,1.06282054]
[1752961171618,0.7537292,117640.0,117630.0,1.06282054]
[1752961172317,0.7567292,117640.0,117630.0,1.06282054]
[1752961172916,0.7567292,117640.0,117630.0,1.13079672]
[1752961173321,0.7587292,117640.0,117630.0,1.13179672]
[1752961173521,0.7587292,117640.0,117630.0,1.06382054]
[1752961174222,0.7557292,117640.0,117630.0,1.06382054]
[1752961174416,0.7816092,117640.0,117630.0,1.06382054]
[1752961175012,0.7806092,117640.0,117630.0,1.06482054]
[1752961176219,0.04706,117640.0,117630.0,1.06482054]
[1752961176424,0.002,117640.0,117630.0,1.06482054]
[1752961177922,0.002,117640.0,117630.0,1.13236219]
[1752961178532,0.002,117640.0,117630.0,1.50236219]
[1752961181528,0.4436748,117660.0,117650.0,0.31308]
[1752961181733,0.5911946,117660.0,117650.0,1.99343004]
[1752961182631,0.5931946,117660.0,117650.0,1.99443004]
[1752961182829,0.6719546,117660.0,117650.0,1.99443004]
[1752961183134,0.6968346,117660.0,117650.0,1.99443004]
[1752961183327,0.6719546,117660.0,117650.0,1.99443004]
[1752961183935,0.7090846,117660.0,117650.0,1.99443004]
[1752961184135,0.7080846,117660.0,117650.0,1.99643004]
[1752961184432,0.7050846,117660.0,117650.0,1.99743004]
[1752961185735,0.4013946,117660.0,117650.0,1.99743004]
[1752961186135,0.4464546,117660.0,117650.0,1.99743004]
[1752961186336,0.5921946,117660.0,117650.0,1.99743004]
[1752961186936,0.4021946,117660.0,117650.0,1.99743004]
[1752961187235,0.4779546,117660.0,117650.0,1.99743004]
[1752961187637,0.5028346,117660.0,117650.0,1.99743004]
[1752961188032,0.001,117660.0,117650.0,1.99743004]
[1752961188239,0.001,117660.0,117650.0,2.35823004]
[1752961188834,0.04606,117660.0,117650.0,2.35823004]
[1752961189228,0.001,117660.0,117650.0,2.35823004]
[1752961189631,0.1709053,117660.0,117650.0,2.35823004]
[1752961189826,0.4046553,117660.0,117650.0,1.37868]
[1752961190032,0.4745953,117660.0,117650.0,1.56326]
[1752961190530,0.4745953,117660.0,117650.0,1.7782198]
[1752961191126,0.4745953,117660.0,117650.0,1.6083]
[1752961191331,0.4745953,117660.0,117650.0,1.7782198]
[1752961191528,0.4745953,117660.0,117650.0,1.6083]
[1752961192434,0.4745953,117660.0,117650.0,1.82729034]
[1752961193037,0.4745953,117660.0,117650.0,1.99721014]
[1752961198438,0.3739553,117660.0,117650.0,1.99721014]
[1752961198645,0.2159653,117660.0,117650.0,1.99721014]
[1752961199943,0.1709053,117660.0,117650.0,1.99721014]
[1752961200239,0.001,117660.0,117650.0,2.35801014]
[1752961200537,0.04534,117680.0,117670.0,0.3603909]
[1752961200739,0.36188353,117700.0,117690.0,0.248492]
[1752961200935,0.93350444,117700.0,117690.0,1.29085234]
[1752961201133,0.78585234,117700.0,117690.0,1.29085234]
[1752961201540,0.181332,117690.0,117680.0,1.08437]
[1752961201744,0.4599865,117680.0,117670.0,0.73574]
[1752961201941,0.8441165,117680.0,117670.0,0.87574]
[1752961202241,0.4833165,117680.0,117670.0,0.71105]
[1752961202445,0.4833165,117680.0,117670.0,0.12077]
[1752961202741,0.4833309,117670.0,117660.0,0.01900783]
[1752961202945,1.42312124,117670.0,117660.0,0.01900783]
[1752961203343,0.4600153,117660.0,117650.0,0.59028]
[1752961203539,0.4833598,117650.0,117640.0,0.01905858]
[1752961203841,0.2964199,117630.0,117620.0,0.93189171]
[1752961204049,0.4833899,117630.0,117620.0,1.27307137]
[1752961204249,0.4833899,117630.0,117620.0,0.91227137]
[1752961204742,0.4833899,117630.0,117620.0,1.08877391]
[1752961205342,0.4833899,117630.0,117620.0,0.86974357]
[1752961205646,0.4833899,117630.0,117620.0,0.89443357]
[1752961206244,0.4833899,117630.0,117620.0,0.89643357]
[1752961206847,0.4833899,117630.0,117620.0,1.04772357]
[1752961207648,0.4833899,117630.0,117620.0,1.62755391]
[1752961207951,0.4833899,117630.0,117620.0,1.26675391]
[1752961208448,0.4833899,117630.0,117620.0,1.62755391]
[1752961210053,0.4833899,117630.0,117620.0,1.67259391]
[1752961213252,0.84055897,117630.0,117620.0,0.3628]
[1752961213545,1.08034931,117630.0,117620.0,0.59224]
[1752961213750,1.43034931,117630.0,117620.0,0.59224]
[1752961214652,1.43034931,117630.0,117620.0,0.002]
[1752961214952,0.4834032,117620.0,117610.0,0.5216421]
[1752961215154,0.4834032,117620.0,117610.0,0.74063244]
[1752961215455,0.4834032,117620.0,117610.0,1.1119221]
[1752961215752,0.4834032,117620.0,117610.0,0.5666821]
[1752961216051,0.4834032,117620.0,117610.0,1.5177621]
[1752961216251,0.4844032,117620.0,117610.0,1.5177621]
[1752961216648,0.4844032,117620.0,117610.0,1.1569621]
[1752961216844,0.4844032,117620.0,117610.0,1.73675244]
[1752961218846,0.4844032,117620.0,117610.0,1.69425854]
[1752961219157,0.4844032,117620.0,117610.0,1.65176444]
[1752961219656,0.4844032,117620.0,117610.0,1.12099034]
[1752961220758,0.4844032,117620.0,117610.0,1.29096804]
[1752961221649,0.4844032,117620.0,117610.0,1.12099034]
[1752961221854,0.4844032,117620.0,117610.0,1.29096804]
[1752961222456,0.4844032,117620.0,117610.0,1.12099034]
[1752961222658,0.4844032,117620.0,117610.0,1.29096804]
[1752961224160,0.1709632,117620.0,117610.0,1.29096804]
[1752961224355,0.001,117620.0,117610.0,1.65176804]
[1752961225464,0.4512786,117640.0,117620.0,0.28383]
[1752961225664,0.5779086,117640.0,117630.0,1.28633914]
[1752961226766,0.4079679,117630.0,117610.0,0.18147257]
[1752961226971,0.4929532,117620.0,117610.0,0.87186257]
[1752961227570,0.4929532,117620.0,117610.0,0.86986257]
[1752961227874,0.8537532,117620.0,117610.0,0.75515257]
[1752961228464,0.8537532,117620.0,117610.0,0.73652]
[1752961228665,0.8537532,117620.0,117610.0,0.85119]
[1752961228867,0.4929532,117620.0,117610.0,0.85119]
[1752961229474,0.4929532,117620.0,117610.0,1.0211677]
[1752961230174,0.4939532,117620.0,117610.0,0.85119]
[1752961230375,0.4939532,117620.0,117610.0,1.0211677]
[1752961230876,0.8547532,117620.0,117610.0,1.0211677]
[1752961231676,0.4939532,117620.0,117610.0,1.0211677]
[1752961232476,0.8547532,117620.0,117610.0,1.0211677]
[1752961235780,0.8547532,117620.0,117610.0,1.0673377]
[1752961236275,0.4939532,117620.0,117610.0,1.0673377]
[1752961237774,0.8547532,117620.0,117610.0,1.0673377]
[1752961237981,0.4939532,117620.0,117610.0,1.0673377]
[1752961242276,0.8547532,117620.0,117610.0,1.0673377]
[1752961242482,0.4939532,117620.0,117610.0,1.0673377]
[1752961245484,0.8547532,117620.0,117610.0,1.0673377]
[1752961245983,0.4939532,117620.0,117610.0,1.0673377]
[1752961249487,0.4939532,117620.0,117610.0,0.4771377]
[1752961249688,0.4939532,117620.0,117610.0,1.0671777]
[1752961252183,0.4939532,117620.0,117610.0,1.0670977]
[1752961256492,0.8547532,117620.0,117610.0,1.0670977]
[1752961256792,0.4939532,117620.0,117610.0,1.0670977]
[1752961257091,0.8547532,117620.0,117610.0,1.0670977]
[1752961257392,0.4939532,117620.0,117610.0,1.0670977]
[1752961257793,0.9847532,117620.0,117610.0,1.0670977]
[1752961258086,0.6239532,117620.0,117610.0,1.0670977]
[1752961259491,0.9847532,117620.0,117610.0,1.0670977]
[1752961260188,0.6239532,117620.0,117610.0,1.0670977]
[1752961260988,0.78794002,117620.0,117610.0,1.23108452]
[1752961261884,1.14874002,117620.0,117610.0,1.23108452]
[1752961262088,0.78794002,117620.0,117610.0,1.23108452]
[1752961262388,1.14874002,117620.0,117610.0,1.23108452]
[1752961262588,0.78794002,117620.0,117610.0,1.23108452]
[1752961263993,0.97794002,117620.0,117610.0,1.23108452]
[1752961271202,1.33874002,117620.0,117610.0,1.23108452]
[1752961271399,0.97794002,117620.0,117610.0,1.23108452]
[1752961272500,1.33874002,117620.0,117610.0,1.23108452]
[1752961272704,0.97794002,117620.0,117610.0,1.23108452]
[1752961273505,0.97794002,117620.0,117610.0,1.23108432]
[1752961274601,0.74794002,117620.0,117610.0,1.23108432]
[1752961274910,1.10874002,117620.0,117610.0,1.18491432]
[1752961275298,1.10874002,117620.0,117610.0,1.23175432]
[1752961275699,1.01874002,117620.0,117610.0,1.23139432]
[1752961275896,1.09874002,117620.0,117610.0,0.64179432]
[1752961276100,1.09874002,117620.0,117610.0,1.23135432]
[1752961276299,0.73794002,117620.0,117610.0,1.23135432]
[1752961276505,1.01794002,117620.0,117610.0,1.23135432]
[1752961277010,1.01794002,117620.0,117610.0,0.64179432]
[1752961277206,1.01794002,117620.0,117610.0,1.23131432]
[1752961280309,0.82794002,117620.0,117610.0,1.23131432]
[1752961280810,0.82794002,117620.0,117610.0,1.0673275]
[1752961281009,1.18874002,117620.0,117610.0,1.18447432]
[1752961281307,1.18874002,117620.0,117610.0,1.23329432]
[1752961281500,0.82794002,117620.0,117610.0,1.23329432]
[1752961288809,1.18874002,117620.0,117610.0,1.23329432]
[1752961289116,0.82794002,117620.0,117610.0,1.23329432]
[1752961289510,0.99794002,117620.0,117610.0,1.23329432]
[1752961290317,0.73794002,117620.0,117610.0,1.23329432]
[1752961290517,0.98794002,117620.0,117610.0,1.23329432]
[1752961290817,1.34874002,117620.0,117610.0,1.23329432]
[1752961292022,0.98794002,117620.0,117610.0,1.23329432]
[1752961292523,1.34874002,117620.0,117610.0,1.23329432]
[1752961292724,0.98794002,117620.0,117610.0,1.23329432]
[1752961293824,0.73794002,117620.0,117610.0,1.23329432]
[1752961298529,0.5739532,117620.0,117610.0,1.23329432]
[1752961298730,0.73794002,117620.0,117610.0,1.23329432]
[1752961301828,0.5739532,117620.0,117610.0,1.23329432]
[1752961302029,0.73794002,117620.0,117610.0,1.23329432]
[1752961308531,0.73794002,117620.0,117610.0,1.23269432]
[1752961308830,0.73794002,117620.0,117610.0,1.06271682]
[1752961313432,1.09874002,117620.0,117610.0,0.47379682]
[1752961313638,0.73794002,117620.0,117610.0,1.06263682]
[1752961314738,0.73794002,117620.0,117610.0,1.23261432]
[1752961315037,0.73794002,117620.0,117610.0,1.06263682]
[1752961315239,0.73794002,117620.0,117610.0,1.23261432]
[1752961317242,0.73794002,117620.0,117610.0,0.64377432]
[1752961317541,0.73794002,117620.0,117610.0,0.47379682]
[1752961318240,0.73794002,117620.0,117610.0,0.64377442]
[1752961318437,0.73794002,117620.0,117610.0,1.23249442]
[1752961318943,0.73794002,117620.0,117610.0,1.06251682]
[1752961322745,0.73794002,117620.0,117610.0,1.23249432]
[1752961323846,0.73794002,117620.0,117610.0,1.0685075]
[1752961324047,0.73794002,117620.0,117610.0,0.89853]
[1752961325247,0.73794002,117620.0,117610.0,1.06251682]
[1752961325945,0.73794002,117620.0,117610.0,1.23249442]
[1752961326143,0.73794002,117620.0,117610.0,1.06251682]
[1752961326344,0.73794002,117620.0,117610.0,1.23249432]
[1752961326544,0.73794002,117620.0,117610.0,1.06251682]
[1752961327547,0.73794002,117620.0,117610.0,1.23249432]
[1752961327848,0.73794002,117620.0,117610.0,1.06251682]
[1752961328650,0.73794002,117620.0,117610.0,1.23249442]
[1752961329454,0.73794002,117620.0,117610.0,1.06251682]
[1752961329656,0.73794002,117620.0,117610.0,0.89853]
[1752961330152,0.73794002,117620.0,117610.0,1.0685076]
[1752961330653,0.73794002,117620.0,117610.0,0.89853]
[1752961331251,0.73794002,117620.0,117610.0,0.30981]
[1752961332552,0.73794002,117620.0,117610.0,0.89825]
[1752961336861,1.09874002,117620.0,117610.0,0.89825]
[1752961337052,0.73794002,117620.0,117610.0,0.89825]
[1752961339162,0.73794002,117620.0,117610.0,1.0682275]
[1752961340060,0.73794002,117620.0,117610.0,1.23221432]
[1752961341462,0.73794002,117620.0,117610.0,1.06223682]
[1752961341662,0.73794002,117620.0,117610.0,1.23221432]
[1752961342569,0.73794002,117620.0,117610.0,1.06223682]
[1752961346071,0.73794002,117620.0,117610.0,1.23221442]
[1752961348075,0.73794002,117620.0,117610.0,1.06223682]
[1752961348372,0.73794002,117620.0,117610.0,0.47379682]
[1752961348573,0.73794002,117620.0,117610.0,1.06175682]
[1752961348873,0.73794002,117620.0,117610.0,1.23173442]
[1752961350473,1.09874002,117620.0,117610.0,1.23173442]
[1752961350675,0.73794002,117620.0,117610.0,1.23173442]
[1752961350865,1.09874002,117620.0,117610.0,1.23173442]
[1752961351173,0.73794002,117620.0,117610.0,1.23165442]
[1752961351574,0.73794002,117620.0,117610.0,1.06167682]
[1752961351776,0.73794002,117620.0,117610.0,1.23165432]
[1752961355274,0.5739532,117620.0,117610.0,1.23165432]
[1752961355478,0.73794002,117620.0,117610.0,1.23165432]
[1752961357782,0.73794002,117620.0,117610.0,1.0676675]
[1752961357983,0.73794002,117620.0,117610.0,1.06167682]
[1752961358180,0.73794002,117620.0,117610.0,1.23165442]
[1752961358379,1.00794002,117620.0,117610.0,1.06167682]
[1752961359185,1.00794002,117620.0,117610.0,1.23165432]
[1752961360086,1.00794002,117620.0,117610.0,1.0676675]
[1752961361689,1.00794002,117620.0,117610.0,0.89769]
[1752961361990,1.00794002,117620.0,117610.0,0.89741]
[1752961362994,0.73794002,117620.0,117610.0,0.89741]
[1752961364196,0.73794002,117620.0,117610.0,1.0673876]
[1752961372902,1.09874002,117620.0,117610.0,0.89741]
[1752961373103,0.73794002,117620.0,117610.0,1.0673887]
[1752961375203,0.73794002,117620.0,117610.0,1.23137552]
[1752961375404,0.99794002,117620.0,117610.0,1.23137552]
[1752961376307,0.74794002,117620.0,117610.0,1.23137552]
[1752961376906,0.74794002,117620.0,117610.0,1.0673887]
[1752961377108,0.74794002,117620.0,117610.0,1.23137552]
[1752961380106,0.74794002,117620.0,117610.0,1.0673887]
[1752961381307,0.72341002,117620.0,117610.0,1.0673887]
[1752961381811,0.74289002,117620.0,117610.0,1.0673887]
[1752961384009,0.74289002,117620.0,117610.0,1.23137552]
[1752961384509,0.99289002,117620.0,117610.0,1.23137552]
[1752961385712,0.5689032,117620.0,117610.0,1.23137552]
[1752961386008,0.96289002,117620.0,117610.0,1.23137552]
[1752961387311,0.65289002,117620.0,117610.0,1.23137552]
[1752961387611,0.98289002,117620.0,117610.0,1.23137552]
[1752961389311,0.65289002,117620.0,117610.0,1.23137552]
[1752961389512,0.98289002,117620.0,117610.0,1.23137552]
[1752961397321,0.65289002,117620.0,117610.0,1.23137552]
[1752961397521,1.02289002,117620.0,117610.0,1.23137552]
[1752961399820,1.02289002,117620.0,117610.0,1.23041552]
[1752961402024,0.5889032,117620.0,117610.0,1.23041552]
[1752961402222,1.02289002,117620.0,117610.0,1.23041552]
[1752961402419,0.8589032,117620.0,117610.0,1.23041552]
[1752961402619,0.65289002,117620.0,117610.0,1.23041552]
[1752961402819,0.98289002,117620.0,117610.0,1.23041552]
[1752961406531,0.78308373,117620.0,117610.0,1.23041552]
[1752961406724,1.00308373,117620.0,117610.0,1.23041552]
[1752961407032,1.19787055,117620.0,117610.0,0.67823]
[1752961407226,1.51787055,117620.0,117610.0,0.67823]
[1752961407428,1.51787055,117620.0,117610.0,0.09159]
[1752961407730,0.2917989,117610.0,117600.0,0.51308595]
[1752961408033,1.34069572,117610.0,117600.0,1.09948595]
[1752961408236,1.34069572,117610.0,117600.0,1.14711595]
[1752961409129,1.34069572,117610.0,117600.0,1.14911595]
[1752961409625,1.34069572,117610.0,117600.0,1.31910935]
[1752961415630,1.34069572,117610.0,117600.0,0.73270935]
[1752961415832,1.34069572,117610.0,117600.0,1.31890935]
[1752961416126,1.34069572,117610.0,117600.0,0.52109253]
[1752961416327,1.34069572,117610.0,117600.0,1.10729253]
[1752961417442,1.34169572,117610.0,117600.0,1.10729253]
[1752961417638,1.34169572,117610.0,117600.0,1.10529253]
[1752961419538,1.34169572,117610.0,117600.0,1.15292253]
[1752961421637,1.34169572,117610.0,117600.0,1.10529253]
[1752961427845,1.32169572,117610.0,117600.0,1.03703231]
[1752961428340,1.32169572,117610.0,117600.0,0.86703891]
[1752961428645,1.32169572,117610.0,117600.0,1.03703231]
[1752961428844,0.2918134,117600.0,117590.0,0.26868748]
[1752961429041,1.54469704,117600.0,117590.0,0.92920248]
[1752961429442,1.54469704,117600.0,117590.0,1.04349248]
[1752961430443,1.54469704,117600.0,117590.0,1.04549248]
[1752961430742,1.56190845,117600.0,117590.0,0.00904748]
[1752961430939,1.56190845,117600.0,117590.0,0.002]
[1752961433545,1.23493481,117600.0,117590.0,0.002]
[1752961433740,1.56290845,117600.0,117590.0,0.002]
[1752961434136,1.72689527,117600.0,117590.0,0.002]
[1752961434342,1.56290845,117600.0,117590.0,0.002]
[1752961434543,0.4841279,117590.0,117580.0,0.01929893]
[1752961434747,2.12862154,117590.0,117580.0,0.01929893]
[1752961436555,2.12962154,117590.0,117580.0,0.01929893]
[1752961445160,1.54390154,117590.0,117580.0,0.01929893]
[1752961445556,2.12942154,117590.0,117580.0,0.27863893]
[1752961445858,2.12942154,117590.0,117580.0,0.03080893]
[1752961446060,2.12942154,117590.0,117580.0,0.01929893]
[1752961447458,1.8014479,117590.0,117580.0,0.01929893]
[1752961447662,2.12942154,117590.0,117580.0,0.01929893]
[1752961448559,1.54390154,117590.0,117580.0,0.01929893]
[1752961448761,2.12938154,117590.0,117580.0,0.01929893]
[1752961449855,2.12938154,117590.0,117570.0,0.14460069]
[1752961449856,0.1700222,117580.0,117570.0,0.14460069]
[1752961450057,1.52035547,117580.0,117570.0,0.26740069]
[1752961450859,1.52035547,117580.0,117570.0,0.09843069]
[1752961452061,1.19238183,117580.0,117570.0,0.09843069]
[1752961452366,1.52035547,117580.0,117570.0,0.09843069]
[1752961452659,1.52035547,117580.0,117570.0,0.09943069]
[1752961454856,1.52035547,117580.0,117570.0,0.02057069]
[1752961455662,1.52035547,117580.0,117570.0,0.00906069]
[1752961456067,1.19238183,117580.0,117570.0,0.00906069]
[1752961456268,1.52035547,117580.0,117570.0,0.00906069]
[1752961468371,1.15955547,117580.0,117570.0,0.00906069]
[1752961468570,1.52035547,117580.0,117570.0,0.00906069]
[1752961471679,1.52035547,117580.0,117570.0,0.07029695]
[1752961479689,1.52035547,117580.0,117570.0,0.00906069]
[1752961479884,1.53946726,117580.0,117570.0,0.00906069]
[1752961493099,1.53933985,117580.0,117570.0,0.00906069]
[1752961493494,1.5393394,117580.0,117570.0,0.00906069]
[1752961499394,1.21136576,117580.0,117570.0,0.00906069]
[1752961499601,1.5393394,117580.0,117570.0,0.00906069]
[1752961501005,1.7506934,117580.0,117570.0,0.00906069]
[1752961516316,1.7506934,117580.0,117570.0,0.09544069]
[1752961516518,2.00667976,117580.0,117570.0,0.29022689]
[1752961516712,2.3346534,117580.0,117570.0,0.29022689]
[1752961516912,2.00667976,117580.0,117570.0,0.29022689]
[1752961517111,2.3346534,117580.0,117570.0,0.29022689]
[1752961517313,2.3346534,117580.0,117570.0,0.12019069]
[1752961517616,2.3346534,117580.0,117570.0,0.09544069]
[1752961517917,1.7506934,117580.0,117570.0,0.09544069]
[1752961518118,2.3346134,117580.0,117570.0,0.09544069]
[1752961518723,1.7506934,117580.0,117570.0,0.09544069]
[1752961518912,2.3346134,117580.0,117570.0,0.09544069]
[1752961519314,2.3346134,117580.0,117570.0,0.26547689]
[1752961519817,1.7506934,117580.0,117570.0,0.29772689]
[1752961520118,2.3345734,117580.0,117570.0,0.19053689]
[1752961520318,2.3345734,117580.0,117570.0,0.17909689]
[1752961521020,2.3345734,117580.0,117570.0,0.00906069]
[1752961521415,2.3345734,117580.0,117570.0,0.17909689]
[1752961522721,2.3345734,117580.0,117570.0,0.00906069]
[1752961526825,2.00659976,117580.0,117570.0,0.00906069]
[1752961527025,2.3345734,117580.0,117570.0,0.00906069]
[1752961530228,1.7506934,117580.0,117570.0,0.00906069]
[1752961530429,2.3344134,117580.0,117570.0,0.00906069]
[1752961532430,2.3344134,117580.0,117570.0,0.17909689]
[1752961533632,1.42271976,117580.0,117570.0,0.47144689]
[1752961533837,2.15136265,117580.0,117570.0,0.47144689]
[1752961534139,2.31534947,117580.0,117570.0,0.47144689]
[1752961534740,1.95454947,117580.0,117570.0,0.47144689]
[1752961535041,1.95454947,117580.0,117570.0,0.53268315]
[1752961536539,1.93710984,117580.0,117570.0,0.53268315]
[1752961538844,1.35346984,117580.0,117570.0,0.53268315]
[1752961539144,1.93702984,117580.0,117570.0,0.53268315]
[1752961539645,1.35346984,117580.0,117570.0,0.53268315]
[1752961540040,1.93702984,117580.0,117570.0,0.53268315]
[1752961540939,1.35346984,117580.0,117570.0,0.53268315]
[1752961541145,1.93702984,117580.0,117570.0,0.53268315]
[1752961541445,1.35346984,117580.0,117570.0,0.53268315]
[1752961541944,1.93698984,117580.0,117570.0,0.53268315]
[1752961542742,1.35346984,117580.0,117570.0,0.53268315]
[1752961542944,1.93698984,117580.0,117570.0,0.53268315]
[1752961544951,1.95549575,117580.0,117570.0,0.47144689]
[1752961546049,1.95549575,117580.0,117570.0,0.22109689]
[1752961546245,1.95549575,117580.0,117570.0,0.40144689]
[1752961546444,1.95549575,117580.0,117570.0,0.42410689]
[1752961547851,1.37197575,117580.0,117570.0,0.47144689]
[1752961548042,1.79142893,117580.0,117570.0,0.63543371]
[1752961548249,1.80873403,117580.0,117570.0,0.63543371]
[1752961548551,1.97272085,117580.0,117570.0,0.47144689]
[1752961548952,1.64474721,117580.0,117570.0,0.47144689]
[1752961549251,1.22529403,117580.0,117570.0,0.47144689]
[1752961549448,1.79022812,117580.0,117570.0,0.47144689]
[1752961549750,1.79022812,117580.0,117570.0,1.99973771]
[1752961549751,0.211354,117580.0,117570.0,1.99973771]
[1752961549950,0.211354,117580.0,117570.0,2.06097397]
[1752961550150,0.211354,117580.0,117570.0,1.74973771]
[1752961550342,0.211354,117580.0,117570.0,1.82627413]
[1752961550850,0.164504,117580.0,117570.0,2.24026095]
[1752961551850,0.164504,117580.0,117570.0,2.25934701]
[1752961552849,0.18915,117600.0,117590.0,0.3191572]
[1752961553054,0.54915,117600.0,117590.0,1.48839379]
[1752961553251,0.99869962,117600.0,117590.0,1.27811402]
[1752961553452,1.16268644,117600.0,117590.0,1.1141272]
[1752961553754,0.99869962,117600.0,117590.0,1.1141272]
[1752961554053,0.99969962,117600.0,117590.0,0.8259272]
[1752961554552,1.16368644,117600.0,117590.0,0.8259272]
[1752961554954,1.16568644,117600.0,117590.0,0.8259272]
[1752961555152,1.00169962,117600.0,117590.0,0.8259272]
[1752961555951,1.21205362,117600.0,117590.0,0.8259272]
[1752961558457,1.21205362,117600.0,117590.0,0.98991402]
[1752961559359,1.0480668,117600.0,117590.0,0.98991402]
[1752961559559,1.21205362,117600.0,117590.0,1.06646402]
[1752961560460,1.0480668,117600.0,117590.0,1.42726402]
[1752961560759,1.0480668,117600.0,117590.0,1.48839379]
[1752961561758,1.0480668,117600.0,117590.0,1.42726402]
[1752961561961,1.0470668,117600.0,117590.0,1.42726402]
[1752961562161,1.0470668,117600.0,117590.0,1.42826402]
[1752961563461,1.21005362,117600.0,117590.0,1.42826402]
[1752961564160,1.21005362,117600.0,117590.0,1.48939379]
[1752961564360,1.21005362,117600.0,117590.0,1.42826402]
[1752961566863,1.21005362,117600.0,117590.0,1.48939379]
[1752961567963,1.0460668,117600.0,117590.0,1.48939379]
[1752961568263,1.21005362,117600.0,117590.0,1.48939379]
[1752961571169,1.0460668,117600.0,117590.0,1.48939379]
[1752961571368,0.9724268,117600.0,117590.0,1.48939379]
[1752961571570,0.9607068,117600.0,117590.0,1.48939379]
[1752961573166,0.790714,117600.0,117590.0,1.48939379]
[1752961573573,0.9607068,117600.0,117590.0,1.48939379]
[1752961574774,0.790714,117600.0,117590.0,1.48939379]
[1752961577576,1.0460668,117600.0,117590.0,1.48939379]
[1752961578878,1.0460668,117600.0,117590.0,1.42826402]
[1752961579080,1.0460668,117600.0,117590.0,1.48937942]
[1752961579479,1.0460668,117600.0,117590.0,1.42826402]
[1752961580080,0.876074,117600.0,117590.0,1.48941643]
[1752961581279,0.802434,117600.0,117590.0,1.48941643]
[1752961581982,0.9724268,117600.0,117590.0,1.48941643]
[1752961582175,0.9724268,117600.0,117590.0,1.32542961]
[1752961582373,1.0491468,117600.0,117590.0,1.17627961]
[1752961582574,1.37712044,117600.0,117590.0,0.59295961]
[1752961582772,1.73792044,117600.0,117590.0,0.06215241]
[1752961582979,1.73792044,117600.0,117590.0,0.001]
[1752961583179,1.0491468,117600.0,117590.0,0.1710072]
[1752961583379,1.21313362,117600.0,117590.0,0.42648999]
[1752961583882,0.803434,117600.0,117590.0,0.50264999]
[1752961584288,0.803434,117600.0,117590.0,1.1467624]
[1752961584587,0.805434,117600.0,117590.0,1.1457624]
[1752961585279,1.0501468,117600.0,117590.0,0.9983624]
[1752961585478,1.21413362,117600.0,117590.0,0.83437558]
[1752961586083,2.32188044,117600.0,117590.0,0.06215241]
[1752961586275,0.4707917,117580.0,117570.0,0.02714675]
[1752961586480,1.48665385,117580.0,117570.0,0.02714675]
[1752961587184,1.37751385,117580.0,117570.0,0.02714675]
[1752961587680,1.37751385,117580.0,117570.0,0.02814675]
[1752961588083,1.37751385,117580.0,117570.0,0.03014675]
[1752961589688,1.01671385,117580.0,117570.0,0.03014675]
[1752961590276,1.22806785,117580.0,117570.0,0.03014675]
[1752961590581,1.22806785,117580.0,117570.0,0.20016595]
[1752961590774,1.58886785,117580.0,117570.0,0.03014675]
[1752961590979,1.58886785,117580.0,117570.0,0.20016595]
[1752961591485,1.22806785,117580.0,117570.0,0.20016595]
[1752961591885,1.00923421,117580.0,117570.0,0.20016595]
[1752961593481,0.83921251,117580.0,117570.0,0.67056959]
[1752961593681,0.211354,117580.0,117570.0,1.20147359]
[1752961593881,0.211354,117580.0,117570.0,2.37447359]
[1752961593882,0.0515734,117580.0,117570.0,2.37447359]
[1752961594080,0.40408,117640.0,117630.0,0.1699328]
[1752961594282,0.45907359,117640.0,117630.0,1.51721584]
[1752961594480,0.24827359,117640.0,117630.0,1.15641584]
[1752961594791,0.26075359,117640.0,117630.0,1.51721584]
[1752961595183,0.26675359,117640.0,117630.0,1.51821584]
[1752961595784,0.26075359,117640.0,117630.0,1.51721584]
[1752961595980,0.29255359,117640.0,117630.0,1.52021584]
[1752961596284,0.57435179,117640.0,117630.0,1.58909887]
[1752961596888,0.57835179,117640.0,117630.0,1.52021584]
[1752961597089,0.78970579,117640.0,117630.0,0.93721584]
[1752961597286,0.78970579,117640.0,117630.0,1.52013584]
[1752961597490,0.7703222,117640.0,117630.0,1.52013584]
[1752961597892,0.7663222,117640.0,117630.0,1.52213584]
[1752961598186,0.6063222,117640.0,117630.0,1.52213584]
[1752961599590,0.6830422,117640.0,117630.0,1.52213584]
[1752961601792,0.6830422,117640.0,117630.0,1.59173266]
[1752961607900,0.6830422,117640.0,117630.0,1.37289902]
[1752961608098,0.6830422,117640.0,117630.0,1.59173266]
[1752961609898,0.513124,117640.0,117630.0,1.59173266]
[1752961613102,0.513124,117640.0,117630.0,1.37289902]
[1752961613301,0.513124,117640.0,117630.0,1.59173266]
[1752961615600,0.6830426,117640.0,117630.0,1.59173266]
[1752961616401,0.6830426,117640.0,117630.0,1.37289902]
[1752961616599,0.6830426,117640.0,117630.0,1.59173266]
[1752961617303,0.6830426,117640.0,117630.0,1.42842584]
[1752961618002,0.6830426,117640.0,117630.0,1.52443584]
[1752961618498,0.6830426,117640.0,117630.0,1.25849304]
[1752961618698,0.6830426,117640.0,117630.0,1.0394194]
[1752961618906,1.22187624,117640.0,117630.0,0.9671794]
[1752961619405,1.0030426,117640.0,117630.0,0.9671794]
[1752961620505,1.0030426,117640.0,117630.0,1.1371124]
[1752961624200,1.28187624,117640.0,117630.0,0.5544324]
[1752961624406,1.21187624,117640.0,117630.0,1.1371124]
[1752961626406,0.90187624,117640.0,117630.0,0.6063794]
[1752961626607,1.26187624,117640.0,117630.0,0.6063794]
[1752961627306,1.28078405,117640.0,117630.0,0.6063794]
[1752961627609,1.06195041,117640.0,117630.0,0.6063794]
[1752961629406,1.06195041,117640.0,117630.0,0.7763126]
[1752961629812,1.28078405,117640.0,117630.0,0.7763126]
[1752961630413,1.28078405,117640.0,117630.0,0.8488226]
[1752961630614,1.06195041,117640.0,117630.0,0.8488226]
[1752961633917,1.08195041,117640.0,117630.0,0.8488226]
[1752961634319,1.0630426,117640.0,117630.0,0.8488226]
[1752961634515,1.0530426,117640.0,117630.0,0.8488226]
[1752961635020,1.07170174,117640.0,117630.0,0.8488226]
[1752961636219,1.0530426,117640.0,117630.0,0.8488226]
[1752961643923,1.0530426,117640.0,117630.0,0.8588226]
[1752961645324,1.0530426,117640.0,117630.0,0.2761426]
[1752961645522,1.0530426,117640.0,117630.0,0.8587826]
[1752961646824,1.27187624,117640.0,117630.0,0.8587826]
[1752961649225,0.90187624,117640.0,117630.0,0.8587826]
[1752961649426,1.22187624,117640.0,117630.0,0.8587826]
[1752961651525,1.23187624,117640.0,117630.0,0.8587826]
[1752961651726,1.23187624,117640.0,117630.0,0.91967565]
[1752961652328,1.23187624,117640.0,117630.0,1.01099565]
[1752961652622,1.0130426,117640.0,117630.0,1.01099565]
[1752961653026,0.843124,117640.0,117630.0,1.37179565]
[1752961653428,0.6830432,117640.0,117630.0,1.37179565]
[1752961653730,1.0330432,117640.0,117630.0,1.37179565]
[1752961654029,0.863124,117640.0,117630.0,1.37179565]